[Event "23rd OIBM 2019"]
[Site "Gmund am Tegernsee"]
[Date "2019.10.31"]
[Round "6.40"]
[White "Schatz, Dieter"]
[Black "Weber, Ulrich"]
[Result "0-1"]
[ECO "B06"]
[WhiteElo "2113"]
[BlackElo "2360"]
[Annotator "RC"]
[PlyCount "88"]
[EventDate "2019.10.17"]
[EventType "swiss"]
[EventCountry "GER"]
[SourceTitle "playchess.com"]
[Source "ChessBase"]
[SourceQuality "1"]
[TimeControl "40/5400+30:1800+30"]

1. e4 {[%emt 0:00:00]} g6 {[%emt 0:00:00]} 2. Nc3 {[%emt 0:00:00]} Bg7 {[%emt 0:00:00]} 3. g3 {[%emt 0:00:13]} c5 {[%emt 0:00:00]} 4. Bg2 {[%emt 0:00:07]} Nc6 {[%emt 0:00:03]} 5. Nge2 {[%emt 0:00:54]} d6 {[%emt 0:01:37]} 6. d3 {[%emt 0:02:03]} e6 {[%emt 0:00:13]} 7. O-O {[%emt 0:02:04]} Nge7 {[%emt 0:00:06]} 8. Be3 {[%emt 0:01:01]} Nd4 {[%emt 0:00:59]} 9. Qd2 {[%emt 0:12:59]} O-O {[%emt 0:01:19]} 10. Nd1 {[%emt 0:00:19]} Nec6 {[%emt 0:09:15]} 11. c3 {[%emt 0:03:42]} Nxe2+ {[%emt 0:00:17]} 12. Qxe2 {[%emt 0:00:03]} Qd7 {[%emt 0:07:26]} 13. h4 {[%emt 0:06:37]} b6 {[%emt 0:01:02]} 14. h5 {[%emt 0:04:35]} Ba6 {[%emt 0:02:09]} 15. h6 {[%emt 0:01:14]} Bh8 {[%emt 0:00:54]} 16. f4 {[%emt 0:00:20]} d5 {[%emt 0:10:20]} 17. Nf2 {[%emt 0:08:10]} dxe4 {[%emt 0:04:15]} 18. Bxe4 {[%emt 0:00:09]} Rad8 {[%emt 0:00:19]} 19. Rfd1 {[%emt 0:00:11]} Rfe8 {[%emt 0:02:24]} 20. Qf3 {[%emt 0:04:43]} Ne7 {[%emt 0:10:04]} 21. Qg2 {[%emt 0:06:07]} Nd5 {[%emt 0:06:35]} 22. Bd2 {[%emt 0:02:49]} Qc7 {[%emt 0:07:00]} 23. Re1 {[%emt 0:03:01]} Nf6 {[%emt 0:07:21]} 24. Rad1 {[%emt 0:07:40]} Re7 {[%emt 0:07:36]} 25. Bc1 {[%emt 0:03:58]} Nxe4 {[%emt 0:06:12]} 26. dxe4 {[%emt 0:00:21]} Red7 {[%emt 0:00:41]} 27. Qf3 {[%emt 0:00:15]} Bb7 {[%emt 0:00:21]} 28. Rxd7 {[%emt 0:01:52]} Rxd7 {[%emt 0:00:08]} 29. Rd1 {[%emt 0:00:09]} f5 {[%emt 0:00:40]} 30. Rxd7 {[%emt 0:01:39]} Qxd7 {[%emt 0:00:01]} 31. Qe3 {[%emt 0:00:25]} fxe4 {[%emt 0:01:27]} 32. Bd2 {[%emt 0:02:52]} Qd5 {[%emt 0:01:14]} 33. a3 {[%emt 0:00:39]} Kf8 {[%emt 0:03:06]} 34. g4 {[%emt 0:01:12]} Bf6 {[%emt 0:00:45]} 35. Kh2 {[%emt 0:05:18]} Be7 {[%emt 0:01:09]} 36. Kg3 {[%emt 0:00:40]} Bd6 {[%emt 0:00:33]} 37. Kh4 {[%emt 0:02:29]} e5 {[%emt 0:04:13]} 38. f5 {[%emt 0:01:36]} Be7+ {[%emt 0:00:46]} 39. f6 {[%emt 0:03:27]} Bxf6+ {[%emt 0:00:05]} 40. g5 {[%emt 0:00:04]} Be7 {[%emt 0:00:16]} 41. Ng4 {[%emt 0:30:29]} Bc8 {[%emt 0:35:57]} 42. Qf2+ {[%emt 0:01:23]} Bf5 {[%emt 0:00:00]} 43. Ne3 {[%emt 0:00:00]} Bxg5+ {[%emt 0:00:00]} 44. Kg3 {[%emt 0:00:00]} Bf4+ {[%emt 0:00:00]} 0-1

[Event "23rd OIBM 2019"]
[Site "Gmund am Tegernsee"]
[Date "2019.10.31"]
[Round "6.42"]
[White "Fiedorek, Michal"]
[Black "Parvanyan, Alfred"]
[Result "1-0"]
[ECO "B34"]
[WhiteElo "2343"]
[BlackElo "2107"]
[Annotator "RC"]
[PlyCount "119"]
[EventDate "2019.10.17"]
[EventType "swiss"]
[EventCountry "GER"]
[SourceTitle "playchess.com"]
[Source "ChessBase"]
[SourceQuality "1"]
[TimeControl "40/5400+30:1800+30"]

1. e4 {[%emt 0:00:00]} c5 {[%emt 0:00:00]} 2. Nf3 {[%emt 0:00:00]} Nc6 {[%emt 0:00:06]} 3. d4 {[%emt 0:00:00]} cxd4 {[%emt 0:00:07]} 4. Nxd4 {[%emt 0:00:00]} Nf6 {[%emt 0:00:08]} 5. Nc3 {[%emt 0:00:14]} e5 {[%emt 0:00:13]} 6. Ndb5 {[%emt 0:00:33]} d6 {[%emt 0:00:14]} 7. Nd5 {[%emt 0:00:23]} Nxd5 {[%emt 0:00:14]} 8. exd5 {[%emt 0:00:08]} Nb8 {[%emt 0:00:04]} 9. a4 {[%emt 0:00:33]} Be7 {[%emt 0:05:01]} 10. Be2 {[%emt 0:00:58]} O-O {[%emt 0:00:30]} 11. O-O {[%emt 0:01:03]} f5 {[%emt 0:02:38]} 12. Bd2 {[%emt 0:05:24]} Na6 {[%emt 0:21:04]} 13. f4 {[%emt 0:10:52]} Bf6 {[%emt 0:09:12]} 14. c3 {[%emt 0:08:49]} Nc5 {[%emt 0:06:21]} 15. Be3 {[%emt 0:09:13]} Ne4 {[%emt 0:02:26]} 16. Nxa7 {[%emt 0:16:04]} exf4 {[%emt 0:10:14]} 17. Bd4 {[%emt 0:00:48]} Bxd4+ {[%emt 0:01:35]} 18. Qxd4 {[%emt 0:00:08]} Nc5 {[%emt 0:00:10]} 19. Nxc8 {[%emt 0:01:12]} Nb3 {[%emt 0:06:22]} 20. Qb6 {[%emt 0:03:33]} Nxa1 {[%emt 0:01:51]} 21. Qxd8 {[%emt 0:00:23]} Rxd8 {[%emt 0:00:04]} 22. Nb6 {[%emt 0:00:52]} f3 {[%emt 0:02:16]} 23. Bb5 {[%emt 0:11:40]} Nb3 {[%emt 0:06:38]} 24. Nxa8 {[%emt 0:00:12]} fxg2 {[%emt 0:02:08]} 25. Rxf5 {[%emt 0:01:56]} Rxa8 {[%emt 0:00:27]} 26. Kxg2 {[%emt 0:02:48]} Rf8 {[%emt 0:01:25]} 27. Rf3 {[%emt 0:02:54]} Rxf3 {[%emt 0:01:51]} 28. Kxf3 {[%emt 0:00:06]} Kf7 {[%emt 0:00:07]} 29. Bd3 {[%emt 0:09:29]} g6 {[%emt 0:00:12]} 30. Ke3 {[%emt 0:04:46]} Kf6 {[%emt 0:05:14]} 31. Bc2 {[%emt 0:00:52]} Nc5 {[%emt 0:00:50]} 32. b4 {[%emt 0:00:17]} Nd7 {[%emt 0:00:14]} 33. Kd4 {[%emt 0:00:59]} h5 {[%emt 0:00:08]} 34. a5 {[%emt 0:06:59]} h4 {[%emt 0:02:21]} 35. Ba4 {[%emt 0:00:45]} Nb8 {[%emt 0:06:43]} 36. Bd1 {[%emt 0:00:40]} Nd7 {[%emt 0:02:48]} 37. Ba4 {[%emt 0:00:42]} Nb8 {[%emt 0:00:12]} 38. Bd1 {[%emt 0:00:04]} Nd7 {[%emt 0:00:06]} 39. Bg4 {[%emt 0:00:35]} Ne5 {[%emt 0:01:03]} 40. Bc8 {[%emt 0:02:08]} Ke7 {[%emt 0:02:23]} 41. Bxb7 {[%emt 0:06:02]} Kd8 {[%emt 0:04:07]} 42. Bc6 {[%emt 0:01:19]} Kc8 {[%emt 0:10:48]} 43. b5 {[%emt 0:01:57]} Nf3+ {[%emt 0:00:13]} 44. Ke3 {[%emt 0:01:29]} Ne5 {[%emt 0:00:42]} 45. Kd4 {[%emt 0:02:53]} Nf3+ {[%emt 0:00:22]} 46. Ke4 {[%emt 0:11:55]} Nd2+ {[%emt 0:01:52]} 47. Kf4 {[%emt 0:01:29]} Nc4 {[%emt 0:00:48]} 48. a6 {[%emt 0:00:17]} Kb8 49. Kg5 {[%emt 0:01:35]} Ka7 {[%emt 0:03:08]} 50. Kxh4 {[%emt 0:00:12]} Ne5 {[%emt 0:01:59]} 51. Kg5 {[%emt 0:01:19]} Kb6 {[%emt 0:01:04]} 52. h4 {[%emt 0:00:42]} Ka7 {[%emt 0:01:51]} 53. Be8 {[%emt 0:00:57]} Nf3+ {[%emt 0:00:33]} 54. Kxg6 {[%emt 0:00:52]} Nxh4+ {[%emt 0:00:06]} 55. Kf6 {[%emt 0:00:15]} Nf3 {[%emt 0:01:59]} 56. Ke7 {[%emt 0:01:32]} Nd2 {[%emt 0:00:55]} 57. Kxd6 {[%emt 0:00:39]} Ne4+ {[%emt 0:00:15]} 58. Ke5 {[%emt 0:01:03]} Nxc3 {[%emt 0:00:12]} 59. d6 {[%emt 0:00:22]} Na2 {[%emt 0:02:34]} 60. d7 {[%emt 0:00:35]} 1-0

[Event "23rd OIBM 2019"]
[Site "Gmund am Tegernsee"]
[Date "2019.10.31"]
[Round "6.44"]
[White "Koepke, Christian"]
[Black "Fauth, Dietmar"]
[Result "1-0"]
[ECO "B32"]
[WhiteElo "2332"]
[BlackElo "2099"]
[Annotator "RC"]
[PlyCount "119"]
[EventDate "2019.10.17"]
[EventType "swiss"]
[EventCountry "GER"]
[SourceTitle "playchess.com"]
[Source "ChessBase"]
[SourceQuality "1"]
[TimeControl "40/5400+30:1800+30"]

1. e4 {[%emt 0:02:11]} c5 {[%emt 0:00:35]} 2. Nf3 {[%emt 0:00:11]} Nc6 {[%emt 0:00:05]} 3. d4 {[%emt 0:00:22]} cxd4 {[%emt 0:00:05]} 4. Nxd4 {[%emt 0:00:07]} e5 {[%emt 0:00:05]} 5. Nb5 {[%emt 0:00:13]} d6 {[%emt 0:00:10]} 6. c4 {[%emt 0:01:07]} a6 {[%emt 0:03:47]} 7. N5c3 {[%emt 0:02:08]} Be7 {[%emt 0:00:20]} 8. Nd5 {[%emt 0:03:41]} Nf6 {[%emt 0:01:41]} 9. Nbc3 {[%emt 0:02:53]} O-O {[%emt 0:01:16]} 10. Bd3 {[%emt 0:00:09]} Nxd5 {[%emt 0:18:19]} 11. cxd5 {[%emt 0:13:37]} Nd4 {[%emt 0:07:20]} 12. O-O {[%emt 0:11:06]} f5 {[%emt 0:10:54]} 13. exf5 {[%emt 0:27:40]} Bxf5 {[%emt 0:04:28]} 14. Be3 {[%emt 0:04:31]} Bxd3 {[%emt 0:16:23]} 15. Qxd3 {[%emt 0:00:07]} Nf5 {[%emt 0:00:21]} 16. Ne4 {[%emt 0:08:02]} Rc8 {[%emt 0:01:18]} 17. Qb3 {[%emt 0:03:12]} Qd7 {[%emt 0:01:53]} 18. Rac1 {[%emt 0:04:53]} h6 {[%emt 0:00:30]} 19. Rxc8 {[%emt 0:06:50]} Rxc8 {[%emt 0:00:15]} 20. Rc1 {[%emt 0:00:36]} Rxc1+ {[%emt 0:11:41]} 21. Bxc1 {[%emt 0:00:01]} Qc8 {[%emt 0:00:38]} 22. Qc3 {[%emt 0:01:52]} Qxc3 {[%emt 0:04:19]} 23. bxc3 {[%emt 0:02:49]} h5 {[%emt 0:01:49]} 24. f3 {[%emt 0:00:38]} Kf7 {[%emt 0:02:50]} 25. g4 {[%emt 0:01:38]} hxg4 {[%emt 0:00:14]} 26. fxg4 {[%emt 0:00:01]} Nh4 {[%emt 0:00:39]} 27. Ba3 {[%emt 0:01:00]} Ke8 {[%emt 0:05:47]} 28. Bxd6 {[%emt 0:00:22]} Kd7 {[%emt 0:00:13]} 29. Bxe7 {[%emt 0:00:30]} Kxe7 {[%emt 0:00:01]} 30. c4 {[%emt 0:00:19]} b6 {[%emt 0:00:33]} 31. Kf2 {[%emt 0:00:24]} Ng6 {[%emt 0:00:35]} 32. Ke3 {[%emt 0:00:29]} Nf4 {[%emt 0:00:44]} 33. Ng3 {[%emt 0:01:20]} g6 {[%emt 0:00:07]} 34. Ne2 {[%emt 0:00:36]} Nh3 {[%emt 0:00:36]} 35. Nc3 {[%emt 0:00:39]} Kd6 {[%emt 0:00:25]} 36. Ne4+ {[%emt 0:00:36]} Ke7 {[%emt 0:00:05]} 37. a4 {[%emt 0:00:21]} Nf4 {[%emt 0:00:12]} 38. Nc3 {[%emt 0:01:02]} Kd6 {[%emt 0:00:10]} 39. Ne4+ {[%emt 0:00:08]} Ke7 {[%emt 0:00:01]} 40. g5 {[%emt 0:01:01]} Nh3 {[%emt 0:02:33]} 41. Kd3 {[%emt 0:14:57]} Nf4+ {[%emt 0:01:19]} 42. Kc3 {[%emt 0:01:23]} Kd7 {[%emt 0:00:36]} 43. a5 {[%emt 0:05:51]} bxa5 {[%emt 0:00:28]} 44. Kb3 {[%emt 0:00:41]} Nd3 {[%emt 0:00:30]} 45. h4 {[%emt 0:01:12]} Ke7 {[%emt 0:05:49]} 46. c5 {[%emt 0:02:32]} Nf4 {[%emt 0:00:53]} 47. Kc4 {[%emt 0:00:45]} a4 {[%emt 0:01:46]} 48. c6 {[%emt 0:01:15]} a3 {[%emt 0:00:41]} 49. d6+ {[%emt 0:01:07]} Kd8 {[%emt 0:08:19]} 50. Kb3 {[%emt 0:00:19]} a2 {[%emt 0:06:25]} 51. Kxa2 {[%emt 0:00:10]} Ne6 {[%emt 0:00:07]} 52. Ka3 {[%emt 0:02:02]} Nd4 {[%emt 0:00:12]} 53. c7+ {[%emt 0:00:27]} Kc8 {[%emt 0:00:04]} 54. Kb4 {[%emt 0:00:54]} Nf5 {[%emt 0:03:20]} 55. Kc5 {[%emt 0:00:24]} Kb7 {[%emt 0:00:07]} 56. Kd5 {[%emt 0:00:31]} a5 {[%emt 0:00:39]} 57. Kxe5 {[%emt 0:01:45]} Nxh4 {[%emt 0:00:32]} 58. Nc5+ {[%emt 0:00:22]} Kc8 {[%emt 0:00:10]} 59. Na4 {[%emt 0:00:17]} Nf5 {[%emt 0:00:12]} 60. Nb6+ {[%emt 0:00:16]} 1-0

[Event "23rd OIBM 2019"]
[Site "Gmund am Tegernsee"]
[Date "2019.11.01"]
[Round "7.4"]
[White "Peralta, Fernando"]
[Black "Engel, Luis"]
[Result "1/2-1/2"]
[ECO "D38"]
[WhiteElo "2569"]
[BlackElo "2507"]
[Annotator "ChessBase"]
[PlyCount "57"]
[EventDate "2019.10.17"]
[EventType "swiss"]
[EventCountry "GER"]
[SourceTitle "playchess.com"]
[Source "ChessBase"]
[SourceQuality "1"]
[TimeControl "40/5400+30:1800+30"]

1. d4 {[%emt 0:00:00]} Nf6 {[%emt 0:00:00]} 2. c4 {[%emt 0:00:00]} e6 {[%emt 0:00:00]} 3. Nf3 {[%emt 0:00:00]} d5 {[%emt 0:00:00]} 4. Nc3 {[%emt 0:00:00]} Bb4 {[%emt 0:00:00]} 5. Qa4+ {[%emt 0:00:22]} Nc6 {[%emt 0:00:00]} 6. e3 {[%emt 0:00:05]} O-O {[%emt 0:00:32]} 7. Bd2 {[%emt 0:00:06]} dxc4 {[%emt 0:02:21]} 8. Bxc4 {[%emt 0:00:08]} Bd6 {[%emt 0:00:18]} 9. Qc2 {[%emt 0:00:36]} a6 {[%emt 0:01:37]} 10. Ne4 {[%emt 0:01:35]} h6 {[%emt 0:10:56]} 11. O-O {[%emt 0:02:39]} e5 {[%emt 0:02:54]} 12. dxe5 {[%emt 0:10:40]} Nxe5 {[%emt 0:00:22]} 13. Nxd6 {[%emt 0:00:15]} Nxf3+ {[%emt 0:01:09]} 14. gxf3 {[%emt 0:00:05]} Qxd6 {[%emt 0:01:08]} 15. Kh1 {[%emt 0:01:36]} Qc6 {[%emt 0:05:42]} 16. e4 {[%emt 0:01:23]} Be6 {[%emt 0:02:50]} 17. Rac1 {[%emt 0:12:00]} Rfd8 {[%emt 0:06:37]} 18. Be3 {[%emt 0:01:30]} Qxc4 {[%emt 0:02:01]} 19. Qxc4 {[%emt 0:00:06]} Bxc4 {[%emt 0:00:05]} 20. Rxc4 {[%emt 0:00:04]} Rd7 {[%emt 0:01:05]} 21. Rg1 {[%emt 0:01:59]} Kh7 {[%emt 0:02:15]} 22. Rgc1 {[%emt 0:01:29]} Ne8 {[%emt 0:01:47]} 23. Kg2 {[%emt 0:10:00]} Rad8 {[%emt 0:02:51]} 24. Bf4 {[%emt 0:00:50]} c6 {[%emt 0:02:57]} 25. Rb4 {[%emt 0:00:18]} g5 {[%emt 0:02:13]} 26. Be3 {[%emt 0:02:24]} Ng7 {[%emt 0:01:06]} 27. f4 {[%emt 0:04:38]} gxf4 {[%emt 0:01:43]} 28. Bxf4 {[%emt 0:00:07]} f5 {[%emt 0:02:12]} 29. Rc3 {[%emt 0:08:37]} 1/2-1/2

[Event "23rd OIBM 2019"]
[Site "Gmund am Tegernsee"]
[Date "2019.11.01"]
[Round "7.5"]
[White "Korneev, Oleg"]
[Black "Idani, Pouya"]
[Result "1/2-1/2"]
[ECO "A14"]
[WhiteElo "2504"]
[BlackElo "2568"]
[Annotator "ChessBase"]
[PlyCount "27"]
[EventDate "2019.10.17"]
[EventType "swiss"]
[EventCountry "GER"]
[SourceTitle "playchess.com"]
[Source "ChessBase"]
[SourceQuality "1"]
[TimeControl "40/5400+30:1800+30"]

1. c4 {[%emt 0:00:00]} e6 {[%emt 0:00:00]} 2. Nf3 {[%emt 0:00:00]} Nf6 {[%emt 0:00:00]} 3. g3 {[%emt 0:00:00]} d5 {[%emt 0:00:00]} 4. Bg2 {[%emt 0:00:00]} Be7 {[%emt 0:00:00]} 5. O-O {[%emt 0:00:00]} O-O {[%emt 0:00:00]} 6. d4 {[%emt 0:00:00]} dxc4 {[%emt 0:00:10]} 7. Qc2 {[%emt 0:00:00]} a6 {[%emt 0:00:05]} 8. Qxc4 {[%emt 0:01:23]} b5 {[%emt 0:00:06]} 9. Qc2 {[%emt 0:00:03]} Bb7 {[%emt 0:00:05]} 10. Bd2 {[%emt 0:08:19]} Be4 {[%emt 0:00:11]} 11. Qc1 {[%emt 0:00:03]} Bb7 {[%emt 0:00:46]} 12. Qc2 {[%emt 0:00:04]} Be4 {[%emt 0:00:06]} 13. Qc1 {[%emt 0:00:03]} Bb7 {[%emt 0:00:07]} 14. Qc2 1/2-1/2

[Event "23rd OIBM 2019"]
[Site "Gmund am Tegernsee"]
[Date "2019.11.01"]
[Round "7.9"]
[White "Badelka, Olga"]
[Black "Santos Latasa, Jaime"]
[Result "0-1"]
[ECO "A16"]
[WhiteElo "2413"]
[BlackElo "2580"]
[Annotator "RC"]
[PlyCount "90"]
[EventDate "2019.10.17"]
[EventType "swiss"]
[EventCountry "GER"]
[SourceTitle "playchess.com"]
[Source "ChessBase"]
[SourceQuality "1"]
[TimeControl "40/5400+30:1800+30"]

1. c4 {[%emt 0:00:00]} Nf6 {[%emt 0:00:00]} 2. Nc3 {[%emt 0:00:00]} g6 {[%emt 0:00:00]} 3. g3 {[%emt 0:05:27]} Bg7 {[%emt 0:00:25]} 4. Bg2 {[%emt 0:00:03]} O-O {[%emt 0:00:08]} 5. e4 {[%emt 0:00:13]} d6 {[%emt 0:00:04]} 6. Nge2 {[%emt 0:00:50]} c5 {[%emt 0:00:10]} 7. O-O {[%emt 0:00:45]} Nc6 {[%emt 0:00:41]} 8. d3 {[%emt 0:00:28]} Bg4 {[%emt 0:00:09]} 9. h3 {[%emt 0:01:21]} Bxe2 {[%emt 0:00:33]} 10. Nxe2 {[%emt 0:00:46]} Nd7 {[%emt 0:00:43]} 11. Rb1 {[%emt 0:02:17]} Rb8 {[%emt 0:02:13]} 12. Be3 {[%emt 0:14:36]} Qc7 {[%emt 0:01:59]} 13. a3 {[%emt 0:09:04]} b5 {[%emt 0:04:00]} 14. cxb5 {[%emt 0:00:05]} Rxb5 {[%emt 0:00:13]} 15. Nc3 {[%emt 0:00:39]} Rbb8 {[%emt 0:03:29]} 16. Nd5 {[%emt 0:00:49]} Qd8 {[%emt 0:03:09]} 17. Qa4 {[%emt 0:10:55]} Rc8 {[%emt 0:01:36]} 18. b4 {[%emt 0:02:58]} e6 {[%emt 0:01:04]} 19. Nf4 {[%emt 0:00:15]} a5 {[%emt 0:07:32]} 20. bxc5 {[%emt 0:08:02]} dxc5 {[%emt 0:10:43]} 21. Ne2 {[%emt 0:01:35]} Qc7 {[%emt 0:07:13]} 22. f4 {[%emt 0:06:08]} Qd6 {[%emt 0:00:41]} 23. Rbd1 {[%emt 0:06:21]} Nd4 {[%emt 0:00:46]} 24. Bxd4 {[%emt 0:08:42]} Bxd4+ {[%emt 0:00:47]} 25. Kh2 {[%emt 0:12:29]} e5 {[%emt 0:06:31]} 26. Nxd4 {[%emt 0:00:05]} Qxd4 {[%emt 0:01:07]} 27. Qc2 {[%emt 0:00:42]} Rb8 {[%emt 0:00:36]} 28. Rd2 {[%emt 0:02:00]} a4 {[%emt 0:01:10]} 29. fxe5 {[%emt 0:00:43]} Nxe5 {[%emt 0:00:38]} 30. Rc1 {[%emt 0:02:56]} Rfc8 {[%emt 0:01:22]} 31. Qc3 {[%emt 0:00:03]} Qxc3 {[%emt 0:00:30]} 32. Rxc3 Rb3 {[%emt 0:00:05]} 33. Rdc2 {[%emt 0:01:05]} Nxd3 {[%emt 0:00:11]} 34. Bf1 {[%emt 0:00:49]} Ne5 {[%emt 0:00:08]} 35. Kg2 {[%emt 0:03:29]} Kf8 {[%emt 0:02:28]} 36. Ba6 {[%emt 0:00:17]} Rc6 {[%emt 0:03:51]} 37. Bc4 {[%emt 0:00:45]} Rxc3 {[%emt 0:03:09]} 38. Rxc3 {[%emt 0:00:02]} Rb6 39. Kf2 Ke7 {[%emt 0:00:53]} 40. Ke3 {[%emt 0:01:38]} Kd6 {[%emt 0:00:41]} 41. Bd5 {[%emt 0:04:52]} Rb2 {[%emt 0:00:57]} 42. Kf4 h6 43. h4 {[%emt 0:01:28]} Rf2+ {[%emt 0:01:17]} 44. Ke3 {[%emt 0:00:04]} Rg2 {[%emt 0:00:14]} 45. Kf4 {[%emt 0:00:29]} f6 {[%emt 0:00:05]} 0-1

[Event "23rd OIBM 2019"]
[Site "Gmund am Tegernsee"]
[Date "2019.11.01"]
[Round "7.20"]
[White "Hofstetter, Hans-Joachim"]
[Black "Loiseau, Quentin"]
[Result "0-1"]
[ECO "B12"]
[WhiteElo "2210"]
[BlackElo "2471"]
[Annotator "ChessBase"]
[PlyCount "81"]
[EventDate "2019.10.17"]
[EventType "swiss"]
[EventCountry "GER"]
[SourceTitle "playchess.com"]
[Source "ChessBase"]
[SourceQuality "1"]
[TimeControl "40/5400+30:1800+30"]

1. e4 {[%emt 0:00:00]} c6 {[%emt 0:00:29]} 2. d4 {[%emt 0:00:16]} d5 {[%emt 0:00:07]} 3. e5 {[%emt 0:00:41]} Bf5 {[%emt 0:00:21]} 4. Nf3 {[%emt 0:00:16]} e6 {[%emt 0:00:12]} 5. Be2 {[%emt 0:00:27]} Ne7 {[%emt 0:01:00]} 6. Nbd2 {[%emt 0:00:37]} c5 {[%emt 0:01:24]} 7. dxc5 {[%emt 0:04:31]} Nec6 {[%emt 0:02:09]} 8. Nb3 {[%emt 0:01:01]} Nd7 {[%emt 0:01:10]} 9. c4 {[%emt 0:05:20]} dxc4 {[%emt 0:03:05]} 10. Bxc4 {[%emt 0:02:41]} Nxc5 {[%emt 0:02:28]} 11. Be3 {[%emt 0:01:33]} Nd3+ {[%emt 0:02:41]} 12. Bxd3 {[%emt 0:03:18]} Bxd3 {[%emt 0:03:03]} 13. Bd4 {[%emt 0:00:21]} Bb4+ {[%emt 0:06:39]} 14. Bc3 {[%emt 0:00:30]} Bxc3+ {[%emt 0:00:22]} 15. bxc3 {[%emt 0:00:01]} Qd5 {[%emt 0:00:12]} 16. Qd2 {[%emt 0:01:32]} Nxe5 {[%emt 0:05:09]} 17. O-O-O {[%emt 0:01:09]} Nxf3 {[%emt 0:01:57]} 18. Qxd3 {[%emt 0:01:31]} Qxd3 {[%emt 0:00:16]} 19. Rxd3 {[%emt 0:00:02]} Ne5 {[%emt 0:00:13]} 20. Rg3 {[%emt 0:00:53]} g6 {[%emt 0:02:05]} 21. Re1 {[%emt 0:00:19]} Nd7 {[%emt 0:01:21]} 22. Rd3 {[%emt 0:01:05]} Ke7 {[%emt 0:01:26]} 23. Kc2 {[%emt 0:05:47]} Rac8 {[%emt 0:00:22]} 24. Red1 {[%emt 0:00:21]} Rc7 {[%emt 0:01:55]} 25. Nd4 {[%emt 0:00:59]} a6 {[%emt 0:00:06]} 26. Ne2 {[%emt 0:00:49]} Rhc8 {[%emt 0:00:40]} 27. g4 {[%emt 0:00:51]} Nf6 {[%emt 0:02:37]} 28. Rg1 {[%emt 0:02:21]} h5 {[%emt 0:00:30]} 29. h3 {[%emt 0:01:05]} Nd5 {[%emt 0:02:35]} 30. Kb3 {[%emt 0:00:19]} hxg4 {[%emt 0:00:50]} 31. hxg4 {[%emt 0:00:08]} Rc4 {[%emt 0:00:27]} 32. f3 {[%emt 0:01:05]} b5 {[%emt 0:00:38]} 33. Rgd1 {[%emt 0:00:18]} Kf6 {[%emt 0:03:17]} 34. a3 {[%emt 0:00:56]} a5 {[%emt 0:00:49]} 35. Rc1 {[%emt 0:01:12]} b4 {[%emt 0:01:42]} 36. axb4 {[%emt 0:00:37]} axb4 {[%emt 0:00:05]} 37. Rd4 {[%emt 0:00:18]} Rxd4 {[%emt 0:00:21]} 38. cxd4 {[%emt 0:00:14]} Ra8 {[%emt 0:02:32]} 39. f4 {[%emt 0:00:03]} Ra3+ {[%emt 0:00:23]} 40. Kb2 {[%emt 0:00:17]} Rf3 {[%emt 0:00:15]} 41. g5+ 0-1

[Event "23rd OIBM 2019"]
[Site "Gmund am Tegernsee"]
[Date "2019.11.01"]
[Round "7.29"]
[White "Zude, Arno"]
[Black "Sieglen, Joachim"]
[Result "1/2-1/2"]
[ECO "C18"]
[WhiteElo "2372"]
[BlackElo "2187"]
[Annotator "RC"]
[PlyCount "73"]
[EventDate "2019.10.17"]
[EventType "swiss"]
[EventCountry "GER"]
[SourceTitle "playchess.com"]
[Source "ChessBase"]
[SourceQuality "1"]
[TimeControl "40/5400+30:1800+30"]

1. e4 {[%emt 0:00:00]} e6 {[%emt 0:00:00]} 2. d4 {[%emt 0:00:00]} d5 {[%emt 0:00:00]} 3. Nc3 {[%emt 0:00:00]} Bb4 {[%emt 0:00:00]} 4. e5 {[%emt 0:00:06]} c5 {[%emt 0:00:00]} 5. a3 {[%emt 0:00:09]} Bxc3+ {[%emt 0:00:00]} 6. bxc3 {[%emt 0:00:08]} Ne7 {[%emt 0:00:00]} 7. Qg4 {[%emt 0:00:34]} cxd4 {[%emt 0:00:05]} 8. Bd3 {[%emt 0:02:14]} Qa5 {[%emt 0:00:59]} 9. Ne2 {[%emt 0:01:37]} Nbc6 {[%emt 0:03:45]} 10. O-O {[%emt 0:12:06]} dxc3 {[%emt 0:05:30]} 11. Qxg7 {[%emt 0:05:31]} Rg8 {[%emt 0:00:12]} 12. Qf6 {[%emt 0:08:25]} Ng6 {[%emt 0:15:53]} 13. Nf4 {[%emt 0:09:03]} Ncxe5 {[%emt 0:35:02]} 14. Nxg6 {[%emt 0:01:52]} Nxg6 {[%emt 0:00:07]} 15. Bg5 {[%emt 0:00:23]} Qc7 {[%emt 0:00:12]} 16. Rfe1 {[%emt 0:06:33]} Qe7 {[%emt 0:03:50]} 17. Qxe7+ {[%emt 0:08:55]} Nxe7 {[%emt 0:00:03]} 18. h4 {[%emt 0:03:24]} Ng6 {[%emt 0:00:28]} 19. h5 {[%emt 0:13:42]} Nf8 {[%emt 0:01:11]} 20. Bf6 {[%emt 0:01:06]} Bd7 {[%emt 0:00:13]} 21. f3 {[%emt 0:03:43]} a6 {[%emt 0:05:25]} 22. a4 {[%emt 0:02:14]} Bc6 {[%emt 0:02:11]} 23. Kf2 {[%emt 0:02:58]} Rc8 {[%emt 0:01:40]} 24. Ra3 {[%emt 0:03:41]} Kd7 {[%emt 0:06:05]} 25. Rb1 {[%emt 0:04:20]} Kd6 {[%emt 0:00:16]} 26. Bxc3 {[%emt 0:02:10]} e5 {[%emt 0:02:02]} 27. Bf5 {[%emt 0:02:01]} Re8 {[%emt 0:00:11]} 28. Bb4+ {[%emt 0:01:26]} Kc7 {[%emt 0:00:09]} 29. Rc3 {[%emt 0:00:47]} Nd7 {[%emt 0:05:23]} 30. Ba5+ {[%emt 0:01:26]} Kd6 {[%emt 0:00:14]} 31. Rxb7 {[%emt 0:02:06]} Bxb7 {[%emt 0:00:22]} 32. Bb4+ {[%emt 0:00:02]} Nc5 {[%emt 0:00:44]} 33. Rxc5 {[%emt 0:00:56]} Bc6 {[%emt 0:00:23]} 34. c4 {[%emt 0:02:20]} d4 {[%emt 0:04:56]} 35. Rb5+ {[%emt 0:00:53]} Kc7 {[%emt 0:00:13]} 36. Ba5+ {[%emt 0:00:06]} Kd6 {[%emt 0:00:02]} 37. Bb4+ {[%emt 0:00:44]} 1/2-1/2

[Event "23rd OIBM 2019"]
[Site "Gmund am Tegernsee"]
[Date "2019.11.01"]
[Round "7.32"]
[White "Meertens, Martin"]
[Black "Fiedorek, Michal"]
[Result "0-1"]
[ECO "B68"]
[WhiteElo "2186"]
[BlackElo "2343"]
[Annotator "NA"]
[PlyCount "42"]
[EventDate "2019.10.17"]
[EventType "swiss"]
[EventCountry "GER"]
[SourceTitle "playchess.com"]
[Source "ChessBase"]
[SourceQuality "1"]
[TimeControl "40/5400+30:1800+30"]

1. e4 {[%emt 0:00:00]} c5 {[%emt 0:00:00]} 2. Nf3 {[%emt 0:00:00]} Nc6 {[%emt 0:00:00]} 3. d4 {[%emt 0:00:31]} cxd4 {[%emt 0:00:00]} 4. Nxd4 {[%emt 0:00:17]} Nf6 {[%emt 0:00:05]} 5. Nc3 {[%emt 0:00:14]} d6 {[%emt 0:00:12]} 6. Bg5 {[%emt 0:00:46]} e6 {[%emt 0:00:09]} 7. Qd2 {[%emt 0:00:17]} a6 {[%emt 0:00:10]} 8. O-O-O {[%emt 0:00:17]} Bd7 {[%emt 0:00:16]} 9. f4 {[%emt 0:00:25]} Be7 {[%emt 0:00:35]} 10. Nf3 {[%emt 0:06:24]} b5 {[%emt 0:00:21]} 11. Bd3 {[%emt 0:06:45]} Qa5 {[%emt 0:00:56]} 12. Kb1 {[%emt 0:04:34]} b4 {[%emt 0:01:21]} 13. Ne2 {[%emt 0:00:52]} O-O {[%emt 0:05:03]} 14. Rhe1 {[%emt 0:04:17]} Rfc8 {[%emt 0:04:25]} 15. Ned4 {[%emt 0:11:23]} Nxd4 {[%emt 0:13:41]} 16. Nxd4 {[%emt 0:00:19]} Qb6 {[%emt 0:02:39]} 17. e5 {[%emt 0:01:36]} Nd5 {[%emt 0:18:22]} 18. Bxe7 {[%emt 0:02:30]} Nxe7 {[%emt 0:00:37]} 19. exd6 {[%emt 0:06:31]} Nd5 {[%emt 0:00:11]} 20. f5 {[%emt 0:08:10]} Nc3+ {[%emt 0:03:47]} 21. bxc3 {[%emt 0:01:23]} bxc3+ {[%emt 0:04:32] Qc1} 0-1